bitfinex/quotes_ETHUSD_20250810
["timestamp","ask_amount","ask_price","bid_price","bid_amount"]
[1754805607654,0.002,4224.0,4223.9,6.19336133]
[1754805607857,0.002,4224.0,4223.9,5.60966133]
[1754805609039,0.002,4224.0,4223.9,3.7156771]
[1754805609234,0.002,4224.0,4223.9,0.22155487]
[1754805609433,1.9434,4224.0,4223.9,0.22155487]
[1754805609747,3.90523219,4224.0,4223.9,0.17155487]
[1754805610147,3.87563939,4224.0,4223.9,0.17155487]
[1754805610347,1.9817,4224.0,4223.9,0.17155487]
[1754805610678,1.9434,4224.0,4223.9,0.17155487]
[1754805611556,3.83733939,4224.0,4223.9,0.17155487]
[1754805611955,4.41065457,4224.0,4223.9,0.17155487]
[1754805612156,5.12165157,4224.0,4223.9,0.17155487]
[1754805612369,3.22771218,4224.0,4223.9,0.17155487]
[1754805612668,5.12165911,4224.0,4223.2,1.89429666]
[1754805612857,0.1184,4223.4,4223.2,1.89429666]
[1754805613258,0.1184,4223.4,4223.1,0.4653]
[1754805613438,0.1184,4223.4,4223.1,5.3596046]
[1754805613639,0.1184,4223.4,4223.1,6.13071253]
[1754805613839,0.1184,4223.4,4223.1,4.23640793]
[1754805614177,0.1184,4223.4,4223.3,1.8942533]
[1754805614764,0.1184,4223.4,4223.3,2.8165533]
[1754805615275,0.710997,4223.5,4223.3,2.8165533]
[1754805615580,1.9414,4223.6,4223.3,0.54819982]
[1754805615864,1.9414,4223.6,4223.1,0.77110793]
[1754805616066,3.83552656,4223.6,4222.7,2.35978773]
[1754805616271,1.89426895,4223.3,4222.3,0.001]
[1754805616440,0.1184,4222.8,4222.3,0.001]
[1754805616639,1.9414,4222.8,4222.3,1.89568807]
[1754805616866,1.9414,4222.8,4222.4,1.89463415]
[1754805617041,1.9414,4222.8,4222.4,1.89464954]
[1754805617635,1.9414,4222.8,4222.5,1.89460515]
[1754805618663,1.9414,4222.8,4222.4,1.89465329]
[1754805618962,1.9414,4222.8,4222.3,1.89569162]
[1754805619161,1.9414,4222.8,4222.3,0.001]
[1754805621073,3.83588431,4222.8,4222.3,0.001]
[1754805621369,1.9414,4222.8,4222.3,0.001]
[1754805621570,1.9414,4222.8,4222.7,0.2210484]
[1754805621939,1.9414,4222.8,4222.7,3.03337086]
[1754805622142,1.9414,4222.8,4222.7,3.52626651]
[1754805622460,1.823,4222.9,4222.8,1.89447759]
[1754805622658,1.823,4222.9,4222.8,3.03332599]
[1754805623972,0.1184,4223.0,4222.9,1.89443273]
[1754805624153,1.9414,4223.0,4222.9,3.03328113]
[1754805624749,0.711042,4223.3,4223.2,1.89429816]
[1754805624956,1.9414,4223.3,4223.2,2.11534656]
[1754805625361,1.9414,4223.3,4223.2,3.03314656]
[1754805625844,1.9414,4223.3,4223.2,2.56404656]
[1754805626049,0.1184,4223.3,4223.2,0.2210484]
[1754805626249,1.9414,4223.3,4223.2,0.2210484]
[1754805627380,1.9414,4223.3,4223.2,2.11534656]
[1754805628879,1.9414,4223.3,4223.2,0.2210484]
[1754805633296,1.9414,4223.3,4223.1,1.89433225]
[1754805633453,0.1184,4223.3,4223.2,3.0332225]
[1754805633654,1.9414,4223.3,4223.2,1.13892434]
[1754805633949,1.9414,4223.3,4223.2,0.22112434]
[1754805634177,2.2066431,4223.3,4223.2,0.22112434]
[1754805634483,2.7737431,4223.3,4223.2,0.22112434]
[1754805634809,4.6679964,4223.3,4223.2,0.22112434]
[1754805635549,0.9507431,4223.3,4223.2,0.22112434]
[1754805635752,2.5085,4223.3,4223.2,1.13892434]
[1754805636586,2.5085,4223.3,4223.2,0.22112434]
[1754805636982,2.5085,4223.3,4223.2,0.66982434]
[1754805637160,2.5085,4223.3,4223.2,1.13892434]
[1754805637656,4.4027533,4223.3,4223.2,0.22112434]
[1754805637859,0.6855,4223.3,4222.8,0.9178]
[1754805638078,1.823,4223.2,4222.9,1.13924256]
[1754805638273,1.823,4223.2,4223.0,1.13924256]
[1754805638475,2.534067,4223.2,4223.1,0.22144256]
[1754805638683,2.652467,4223.2,4223.1,1.13924256]
[1754805639371,0.829467,4223.2,4223.1,1.13924256]
[1754805639687,1.9414,4223.2,4223.1,1.13924256]
[1754805640663,0.1184,4223.2,4223.1,1.13924256]
[1754805640863,1.9414,4223.2,4223.1,1.13924256]
[1754805641474,0.1184,4223.2,4223.1,1.13924256]
[1754805641674,1.9414,4223.2,4223.1,1.13924256]
[1754805641883,1.9414,4223.2,4223.1,0.22144256]
[1754805642093,1.89429816,4223.2,4222.6,0.001]
[1754805642277,8.95034742,4223.5,4222.7,0.22166426]
[1754805642278,1.823,4223.1,4222.7,0.22166426]
[1754805642577,1.823,4223.0,4222.8,0.22166426]
[1754805642875,1.823,4223.0,4222.9,0.22166426]
[1754805643196,1.823,4223.0,4222.9,0.67036426]
[1754805643385,1.823,4223.0,4222.9,1.13946426]
[1754805643893,3.71738787,4223.0,4222.9,0.22166426]
[1754805644486,2.2727,4223.0,4222.9,0.22166426]
[1754805645117,0.4497,4223.0,4222.9,1.13946426]
[1754805645585,1.823,4223.0,4222.9,0.22166426]
[1754805645765,1.823,4223.0,4222.9,0.69076426]
[1754805645969,1.823,4223.0,4222.9,1.13946426]
[1754805646174,1.823,4223.0,4222.9,3.33739527]
[1754805646588,1.823,4223.0,4222.9,1.44296254]
[1754805647801,1.823,4223.0,4222.9,3.33739527]
[1754805647999,1.823,4223.0,4222.9,0.22166426]
[1754805648506,1.823,4223.0,4222.9,0.68146426]
[1754805648674,1.823,4223.0,4222.9,1.16306426]
[1754805651598,1.823,4223.0,4222.9,0.22166426]
[1754805651805,1.823,4223.0,4222.9,0.68146426]
[1754805652109,1.9414,4223.0,4222.9,0.68146426]
[1754805652413,1.9414,4223.0,4222.9,1.16306426]
[1754805652611,1.9414,4223.0,4222.9,0.22166426]
[1754805654009,2.94607292,4223.0,4222.9,0.22166426]
[1754805654228,2.98437292,4223.0,4222.9,0.22166426]
[1754805654379,4.87876079,4223.0,4222.9,0.22166426]
[1754805655825,4.84046079,4223.0,4222.9,0.22166426]
[1754805656025,5.10042479,4223.0,4222.9,0.22166426]
[1754805656231,5.1300246,4223.0,4222.9,0.22166426]
[1754805656521,2.44443273,4222.9,4222.8,0.001]
[1754805656686,4.21308282,4222.9,4222.8,0.22267594]
[1754805658312,2.31865009,4222.9,4222.8,0.22267594]
[1754805658501,2.373,4222.9,4222.8,0.22267594]
[1754805658705,4.26743273,4222.9,4222.8,0.22267594]
[1754805658892,0.1184,4222.9,4222.8,0.22267594]
[1754805659095,1.9414,4222.9,4222.8,0.68247594]
[1754805659281,0.1184,4222.9,4222.8,0.68247594]
[1754805659481,3.83583273,4222.9,4222.8,0.68247594]
[1754805659681,3.83583273,4222.9,4222.8,0.22267594]
[1754805659882,3.83583273,4222.9,4222.8,0.68247594]
[1754805660482,1.9414,4222.9,4222.8,0.68247594]
[1754805660687,3.83583273,4222.9,4222.8,0.68247594]
[1754805661713,1.9414,4222.9,4222.8,0.68247594]
[1754805662106,3.83583273,4222.9,4222.8,0.68247594]
[1754805662618,1.9414,4222.9,4222.8,0.68247594]
[1754805663119,3.83583273,4222.9,4222.8,0.68247594]
[1754805663285,3.83583273,4222.9,4222.8,0.22267594]
[1754805663984,2.01283273,4222.9,4222.8,0.22267594]
[1754805664299,3.83583273,4222.9,4222.8,0.22267594]
[1754805665993,3.83583273,4222.9,4222.8,1.16407594]
[1754805666199,1.823,4222.9,4222.8,1.16407594]
[1754805669014,1.822,4222.9,4222.8,1.16407594]
[1754805669746,1.822,4222.9,4222.8,0.22267594]
[1754805670044,4.08807087,4222.9,4222.8,0.22267594]
[1754805670245,4.11767138,4222.9,4222.8,0.22267594]
[1754805670413,4.66767138,4222.9,4222.8,0.22267594]
[1754805670614,4.63807087,4222.9,4222.8,0.22267594]
[1754805672020,0.37163814,4222.9,4222.8,0.22267594]
[1754805672243,3.71643273,4222.9,4222.8,1.16407594]
[1754805673233,3.71643273,4222.9,4222.8,0.22267594]
[1754805674919,4.26643273,4222.9,4222.8,0.22267594]
[1754805675764,4.26643273,4222.9,4222.8,0.001]
[1754805675925,4.26643273,4222.9,4222.8,0.2226316]
[1754805676139,4.38483273,4222.9,4222.8,0.2226316]
[1754805676541,5.87170481,4222.9,4222.8,0.2226316]
[1754805678354,2.15527208,4222.9,4222.8,0.2226316]
[1754805678543,2.4904,4222.9,4222.8,0.2226316]
[1754805678737,2.4904,4222.9,4222.8,1.1527316]
[1754805679182,4.38483273,4222.9,4222.8,1.1527316]
[1754805679539,0.6684,4222.9,4222.8,1.1527316]
[1754805679739,0.1184,4222.9,4222.8,1.1527316]
[1754805679950,1.9404,4222.9,4222.8,1.1527316]
[1754805680170,3.83483273,4222.9,4222.8,1.1527316]
[1754805680692,3.83483273,4222.9,4222.8,0.6946316]
[1754805680983,12.98993883,4222.9,4222.8,0.2226316]
[1754805681184,13.46716219,4222.9,4222.8,0.2226316]
[1754805683176,13.50546219,4222.9,4222.8,0.2226316]
[1754805683575,1.89452246,4222.7,4222.6,0.001]
[1754805683781,3.74612437,4222.7,4222.6,0.001]
[1754805683984,7.80294824,4222.7,4222.6,0.001]
[1754805684152,2.44465706,4222.4,4222.3,0.001]
[1754805684362,12.53556749,4222.4,4222.3,0.001]
[1754805684554,24.87861456,4222.4,4222.3,0.001]
[1754805685050,5.44474681,4222.2,4222.1,0.001]
[1754805685258,7.77356946,4222.2,4222.1,0.001]
[1754805686093,7.81990583,4222.2,4222.1,0.001]
[1754805686260,7.78160583,4222.2,4222.1,0.001]
[1754805686595,10.09864651,4222.2,4222.1,0.001]
[1754805687000,8.27664651,4222.2,4222.1,0.001]
[1754805687361,9.59182386,4222.2,4222.1,0.001]
[1754805687897,1.89483657,4222.0,4220.6,1e-08]
[1754805688058,3.0,4221.9,4220.7,0.9301]
[1754805688397,1.89525109,4221.1,4220.8,0.9301]
[1754805688693,1.826,4221.0,4220.9,0.9301]
[1754805688989,1.826,4221.0,4220.6,1e-08]
[1754805689686,1.826,4221.0,4220.7,0.9301]
[1754805689886,1.826,4221.0,4220.8,0.9301]
[1754805690088,3.72129056,4221.0,4220.9,0.9301]
[1754805690796,0.55,4220.9,4220.6,1e-08]
[1754805690963,0.1184,4220.7,4220.6,1e-08]
[1754805691289,0.1184,4220.7,4220.6,0.45810001]
[1754805691981,0.1184,4220.7,4220.6,0.93010001]
[1754805692499,2.01382019,4220.7,4220.6,0.93010001]
[1754805692678,0.1184,4220.7,4220.6,1e-08]
[1754805692882,0.1184,4220.7,4220.6,0.93010001]
[1754805693275,2.01382019,4220.7,4220.6,0.93010001]
[1754805693594,0.1184,4220.7,4220.6,0.93010001]
[1754805693788,2.01382019,4220.7,4220.6,0.93010001]
[1754805694092,2.71349254,4220.7,4220.6,1e-08]
[1754805694280,4.56810848,4220.7,4220.6,1e-08]
[1754805694485,3.86843613,4220.7,4220.6,1e-08]
[1754805695201,4.38882019,4220.7,4220.6,0.00100001]
[1754805695403,3.83882019,4220.7,4220.6,0.00100001]
[1754805695712,4.38882019,4220.7,4220.6,0.22190723]
[1754805695992,5.08839254,4220.7,4220.6,0.22190723]
[1754805697465,7.99960848,4220.7,4220.6,0.22190723]
[1754805697665,3.69957235,4220.7,4219.6,0.04]
[1754805697872,0.7195955,4221.0,4220.3,0.9301]
[1754805698075,1.824,4220.9,4220.4,0.9301]
[1754805698400,1.824,4220.9,4220.5,0.9301]
[1754805698598,0.711555,4221.0,4220.2,0.4581]
[1754805698599,1.89551559,4220.5,4220.2,0.4581]
[1754805698805,1.85461804,4220.4,4219.8,0.4581]
[1754805699007,0.55,4220.3,4219.8,0.4581]
[1754805699301,1.89569676,4220.1,4219.9,0.9301]
[1754805699507,1.825,4220.0,4219.9,0.9301]
[1754805699982,1.825,4220.0,4219.6,0.04]
[1754805700384,1.89586937,4219.7,4219.6,0.04]
[1754805700604,3.72086937,4219.7,4219.6,0.04]
[1754805700816,3.72086937,4219.7,4219.6,0.512]
[1754805701015,0.55,4219.8,4219.6,0.9701]
[1754805701301,1.89569447,4220.1,4219.7,0.9301]
[1754805701501,3.0,4220.3,4219.8,0.9301]
[1754805701502,1.825,4220.0,4219.8,0.9301]
[1754805701673,1.825,4219.9,4219.6,0.04]
[1754805702002,0.55,4219.8,4219.6,0.04]
[1754805702183,1.89586937,4219.7,4219.6,0.04]
[1754805702608,2.6994952,4219.8,4219.6,0.9701]
[1754805702807,0.55,4219.9,4219.7,0.9301]
[1754805703108,0.55,4219.8,4219.6,0.04]
[1754805703272,2.4458289,4219.8,4219.6,0.04]
[1754805703474,1.826,4219.7,4219.6,0.04]
[1754805704005,1.826,4219.7,4219.6,0.512]
[1754805704210,0.55,4219.5,4219.3,0.001]
[1754805704507,4.27200417,4219.4,4219.3,0.001]
[1754805705396,7.27200417,4219.4,4219.3,0.001]
[1754805705920,7.27300417,4219.4,4219.3,0.001]
[1754805706099,9.06103115,4219.4,4219.3,0.001]
[1754805706326,17.30033757,4219.4,4219.3,0.001]
[1754805706524,15.47333757,4219.4,4219.3,0.001]
[1754805706731,17.30033757,4219.4,4219.3,0.001]
[1754805707439,17.42678107,4219.4,4219.3,0.001]
[1754805707633,15.59978107,4219.4,4219.3,0.001]
[1754805708137,9.18747465,4219.4,4219.3,0.001]
[1754805708308,9.18647465,4219.4,4219.3,0.001]
[1754805709510,7.36047465,4219.4,4219.3,0.001]
[1754805709851,0.1184,4219.4,4219.3,1.14227961]
[1754805710154,1.9444,4219.4,4219.3,1.14227961]
[1754805710835,3.84040417,4219.4,4219.3,1.14227961]
[1754805711248,1.9444,4219.4,4219.3,1.14227961]
[1754805712728,3.84040417,4219.4,4219.3,1.14227961]
[1754805713042,3.84040417,4219.4,4219.3,0.22147961]
[1754805713334,3.84040417,4219.4,4219.3,0.66587961]
[1754805713706,1.9444,4219.4,4219.3,1.14227961]
[1754805714138,0.17819487,4219.7,4219.3,1.14227961]
[1754805714342,0.1184,4219.4,4219.3,0.001]
[1754805714517,1.9434,4219.4,4219.3,2.11790343]
[1754805714908,0.1184,4219.4,4219.3,2.11790343]
[1754805715204,1.9434,4219.4,4219.3,3.03870343]
[1754805715408,1.9434,4219.4,4219.3,3.53218704]
[1754805715854,0.1184,4219.4,4219.3,3.53218704]
[1754805716055,3.01866608,4219.9,4219.4,1.89600417]
[1754805716215,0.1184,4219.7,4219.6,1.8959143]
[1754805716411,0.1184,4219.7,4219.6,2.11676863]
[1754805717033,0.1184,4219.7,4219.6,1.14165433]
[1754805719921,1.9424,4219.7,4219.6,1.14165433]
[1754805720418,1.823,4219.7,4219.6,1.44552414]
[1754805720618,1.823,4219.7,4219.6,3.15596863]
[1754805720819,0.1184,4220.2,4219.6,1.26005433]
[1754805721019,1.823,4220.1,4219.9,1.89576513]
[1754805721324,1.823,4220.1,4220.0,1.14165433]
[1754805721537,1.823,4220.1,4220.0,3.3414264]
[1754805721839,1.823,4220.1,4220.0,1.44569181]
[1754805722240,1.823,4220.1,4220.0,1.14194986]
[1754805726121,0.1184,4220.2,4220.0,1.14194986]
[1754805726442,1.823,4220.1,4219.6,0.1184]
[1754805726643,1.823,4220.1,4219.7,2.11703239]
[1754805726843,1.823,4220.1,4219.8,0.2211715]
[1754805727018,1.823,4220.1,4219.9,1.1419715]
[1754805727218,1.823,4220.1,4220.0,0.6975715]
[1754805727419,1.823,4220.1,4220.0,1.1419715]
[1754805729918,1.823,4220.1,4220.0,0.2211715]
[1754805730121,3.74830982,4220.1,4220.0,0.2211715]
[1754805730354,4.7232808,4220.1,4220.0,0.2211715]
[1754805730521,5.40531665,4220.1,4220.0,0.2211715]
[1754805730720,8.40531665,4220.1,4220.0,0.2211715]
[1754805731031,1.89600417,4219.4,4218.8,0.001]
[1754805731223,4.21659861,4219.4,4218.8,0.001]
[1754805732355,4.76659861,4219.4,4218.8,0.001]
[1754805733157,4.77463901,4219.4,4218.8,0.001]
[1754805733319,4.21659861,4219.4,4218.8,0.001]
[1754805734755,4.28452367,4219.4,4218.8,0.001]
[1754805734962,4.25489861,4219.4,4218.8,0.001]
[1754805735368,4.28452367,4219.4,4218.8,0.001]
[1754805735717,4.83452367,4219.4,4218.8,0.001]
[1754805736028,4.84256407,4219.4,4218.8,0.001]
[1754805736241,7.83452367,4219.4,4218.8,0.001]
[1754805736435,7.80489861,4219.4,4218.8,0.001]
[1754805736636,7.81294251,4219.4,4218.8,0.001]
[1754805737578,7.81294251,4219.4,4219.3,1e-08]
[1754805738292,2.4460491,4219.3,4218.6,0.04]
[1754805738440,1.89658851,4218.1,4218.0,1e-08]
[1754805738639,1.823,4218.1,4218.0,0.94450001]
[1754805739180,0.48765397,4218.5,4218.0,0.94450001]
[1754805739391,3.71945655,4218.4,4218.1,0.9445]
[1754805739574,3.71945655,4218.4,4218.0,1e-08]
[1754805739778,1.89653369,4218.3,4218.0,1e-08]
[1754805740070,1.823,4218.4,4218.1,0.9445]
[1754805740242,1.823,4218.4,4218.0,1e-08]
[1754805740442,1.89655157,4218.2,4218.0,0.46860001]
[1754805740680,3.72058851,4218.1,4218.0,0.46860001]
[1754805740880,1.824,4218.1,4218.0,0.46860001]
[1754805741083,1.19956297,4218.5,4218.0,0.94450001]
[1754805741254,1.824,4218.4,4218.0,1e-08]
[1754805741584,1.824,4218.4,4218.1,0.9445]
[1754805741753,3.72045782,4218.4,4218.0,1e-08]
[1754805741958,3.72045782,4218.4,4218.1,0.9445]
[1754805742156,3.72045782,4218.4,4218.2,0.4759]
[1754805742356,3.72045782,4218.4,4218.0,1e-08]
[1754805742568,3.72045782,4218.4,4218.3,0.9445]
[1754805742770,1.89650599,4218.3,4218.0,1e-08]
[1754805742941,1.89650599,4218.3,4218.1,1.16549]
[1754805743142,1.89650599,4218.3,4218.2,0.22099]
[1754805743445,1.19956197,4218.5,4218.2,1.16549]
[1754805743651,1.824,4218.4,4218.3,1.16549]
[1754805743850,0.48765397,4218.5,4218.3,1.16549]
[1754805744174,1.824,4218.4,4218.0,1e-08]
[1754805744376,1.824,4218.4,4218.1,0.22090335]
[1754805744583,1.824,4218.4,4218.2,0.22090335]
[1754805744759,1.824,4218.4,4218.3,1.16540335]
[1754805744970,1.824,4218.4,4218.3,0.22090335]
[1754805745255,1.824,4218.4,4218.3,0.68950335]
[1754805745455,3.72045363,4218.4,4218.3,0.22090335]
[1754805745764,4.16367909,4218.4,4218.3,0.22090335]
[1754805745986,3.72045363,4218.4,4218.3,0.22090335]
[1754805746154,3.72045363,4218.4,4218.3,0.22089112]
[1754805746573,3.72045363,4218.4,4218.3,0.68949112]
[1754805746761,1.824,4218.4,4218.3,0.68949112]
[1754805747083,1.824,4218.4,4218.3,1.16539112]
[1754805747282,0.711844,4218.7,4218.3,0.9445]
[1754805747283,1.89641632,4218.5,4218.3,0.9445]
[1754805747517,1.824,4218.4,4218.3,0.9445]
[1754805747784,1.824,4218.4,4218.3,0.69673125]
[1754805748368,1.824,4218.4,4218.3,1.16533125]
[1754805748784,0.1184,4218.4,4218.3,3.06182983]
[1754805749071,1.824,4218.4,4218.3,3.36802565]
[1754805749652,0.1184,4218.7,4218.4,1.89645117]
[1754805749993,1.824,4218.6,4218.5,0.22083125]
[1754805750356,1.824,4218.6,4218.5,3.06173992]
[1754805750576,1.89587327,4219.7,4218.6,1.89636372]
[1754805750890,0.1184,4219.2,4218.7,1.11533125]
[1754805751062,0.1184,4219.2,4218.8,0.9445]
[1754805751262,0.1184,4219.2,4218.9,0.9445]
[1754805751665,0.1184,4219.2,4219.0,0.9445]
[1754805751971,0.1184,4219.2,4219.1,0.9445]
[1754805752166,2.9634,4219.5,4219.4,1.89600417]
[1754805752379,2.9634,4219.5,4219.4,0.9445]
[1754805752380,2.845,4219.5,4219.4,0.9445]
[1754805752695,2.845,4219.5,4219.4,2.84050417]
[1754805752696,4.669,4219.5,4219.4,2.84050417]
[1754805753206,1.824,4219.5,4219.4,2.84050417]
[1754805753496,1.824,4219.5,4219.4,3.3260034]
[1754805754160,1.824,4219.5,4219.4,0.9445]
[1754805754674,1.824,4219.5,4219.2,0.1184]
[1754805754880,1.824,4219.5,4219.1,1.89613883]
[1754805755078,1.824,4219.5,4219.2,0.9445]
[1754805755585,1.824,4219.5,4219.2,2.37198431]
[1754805755790,1.823,4219.4,4219.3,2.84053803]
[1754805756693,0.1184,4219.6,4219.3,2.84053803]
[1754805756694,0.1184,4219.6,4219.4,1.89600019]
[1754805756864,0.002,4219.9,4219.4,0.9445]
[1754805757059,1.823,4219.8,4219.5,0.9445]
[1754805757260,1.823,4219.7,4219.6,0.9445]
[1754805758059,0.002,4219.9,4219.7,1.89586937]
[1754805758304,0.002,4219.9,4219.8,1.89582444]
[1754805758595,1.825,4219.9,4219.8,2.84032444]
[1754805758894,1.825,4219.9,4219.8,0.9445]
[1754805759393,1.825,4219.9,4219.6,0.1184]
[1754805759597,1.825,4219.9,4219.2,0.4686]
[1754805759759,1.9434,4219.9,4219.4,1.89600417]
[1754805759965,1.9434,4219.9,4219.5,0.4686]
[1754805760280,1.9434,4219.9,4219.6,0.4686]
[1754805760482,1.9434,4219.9,4219.7,0.4686]
[1754805761191,0.002,4219.9,4219.8,0.9445]
[1754805761406,0.002,4219.9,4219.8,3.13620194]
[1754805762869,0.002,4219.9,4219.8,3.35722101]
[1754805765492,0.002,4219.9,4219.8,0.22101907]
[1754805768305,1.89777952,4219.9,4219.8,0.22101907]
[1754805768607,0.002,4219.9,4219.8,0.22101907]
[1754805768775,1.9434,4219.9,4219.8,0.68061907]
[1754805768976,1.9434,4219.9,4219.8,0.22101907]
[1754805769681,1.9434,4219.9,4219.8,1.15751907]
[1754805769901,1.825,4219.9,4219.8,1.15751907]
[1754805770102,1.825,4219.9,4219.8,3.05334351]
[1754805770303,1.825,4219.9,4219.8,3.56010907]
[1754805770675,0.002,4219.9,4219.8,3.56010907]
[1754805771290,0.002,4219.9,4219.8,3.67836918]
[1754805771486,0.002,4219.9,4219.8,3.67835608]
[1754805774275,0.002,4219.9,4219.8,3.67845249]
[1754805774480,0.002,4219.9,4219.8,6.67845249]
[1754805774805,1e-08,4219.9,4219.8,14.92567739]
[1754805775016,0.002,4220.3,4220.2,1.89564475]
[1754805775207,0.002,4220.3,4220.2,14.1613674]
[1754805775377,0.002,4220.3,4220.2,15.0978674]
[1754805776826,0.002,4220.3,4220.2,6.8506425]
[1754805782224,0.002,4220.3,4220.2,6.85092803]
[1754805785083,0.002,4220.8,4220.7,1.89542019]
[1754805785197,0.002,4220.8,4220.7,2.11666821]
[1754805785527,0.002,4220.8,4220.7,2.63628325]
[1754805787643,0.002,4220.8,4220.7,2.63630963]
[1754805787848,0.002,4220.8,4220.7,3.57280963]
[1754805789047,0.002,4220.8,4220.7,6.57280963]
[1754805789906,0.002,4220.8,4220.7,4.67738944]
[1754805790318,0.002,4220.8,4220.7,6.09590963]
[1754805790539,0.002,4220.8,4220.7,5.69469459]
[1754805791247,0.002,4220.8,4220.7,5.23509459]
[1754805791420,0.002,4220.8,4220.7,0.3396744]
[1754805791617,0.3954,4220.8,4220.7,0.2212744]
[1754805792438,2.29077528,4220.8,4220.7,0.2212744]
[1754805792646,2.71378166,4220.8,4220.7,0.2212744]
[1754805793749,1.89552163,4220.5,4219.7,1.89586416]
[1754805793953,0.1184,4220.1,4219.8,0.22135868]
[1754805794130,0.1184,4220.1,4219.9,0.22135868]
[1754805794453,0.1184,4220.1,4220.0,0.22135868]
[1754805797655,0.42500638,4220.8,4220.0,0.67745868]
[1754805797821,0.1184,4220.4,4220.1,0.22135868]
[1754805798027,0.1184,4220.4,4220.2,0.22135868]
[1754805798358,0.1184,4220.4,4220.3,0.22135868]
[1754805798867,1.822,4220.4,4220.3,2.57305851]
[1754805799070,0.002,4220.8,4220.3,2.57305851]
[1754805799071,0.002,4220.8,4220.3,3.02575851]
[1754805799241,1.822,4220.6,4220.4,0.22135868]
[1754805799560,0.002,4220.8,4220.5,3.02566869]
[1754805799860,0.002,4220.8,4220.7,1.89542019]
[1754805800023,0.002,4220.8,4220.7,2.11677887]
[1754805800263,0.002,4220.8,4220.7,2.57287887]
[1754805800498,0.002,4220.8,4220.7,3.02557887]
[1754805802104,0.002,4220.8,4220.7,3.52952776]
[1754805803995,0.002,4220.8,4220.7,11.78013569]
[1754805804372,0.042,4220.9,4220.8,4.89537528]
[1754805804571,0.042,4220.9,4220.8,5.11673396]
[1754805804808,0.042,4220.9,4220.8,6.14393396]
[1754805805097,0.042,4220.9,4220.8,6.39045788]
[1754805805599,0.042,4220.9,4220.8,6.3904747]
[1754805807306,0.042,4220.9,4220.8,2.4816747]
[1754805807477,0.042,4220.9,4220.8,5.23515078]
[1754805808009,0.042,4220.9,4220.8,0.3397755]
[1754805810776,0.042,4220.9,4220.8,0.2213755]
[1754805811081,2.2191,4220.9,4220.8,0.2213755]
[1754805811396,2.2191,4220.9,4220.8,0.22139774]
[1754805811801,2.63456055,4220.9,4220.8,0.22139774]
[1754805812119,4.56819092,4220.9,4220.8,0.22139774]
[1754805812300,2.67286055,4220.9,4220.8,0.22139774]
[1754805812694,4.56819092,4220.9,4220.8,0.22139774]
[1754805813284,2.63456055,4220.9,4220.8,0.22139774]
[1754805813485,2.39786055,4220.9,4220.8,0.22139774]
[1754805814306,0.57586055,4220.9,4220.8,0.22139774]
[1754805814513,1.9824,4220.9,4220.8,0.22139774]
[1754805815581,0.1604,4220.9,4220.8,0.22139774]
[1754805815809,1.9824,4220.9,4220.8,0.22139774]
[1754805816011,0.1604,4220.9,4220.8,0.22139774]
[1754805816177,1.864,4220.9,4220.8,0.22139774]
[1754805816996,1.864,4220.9,4220.8,0.22142317]
[1754805817193,2.2794649,4220.9,4220.8,0.22142317]
[1754805819709,2.2794649,4220.9,4220.8,0.22144897]
[1754805820210,2.2794649,4220.9,4220.8,0.22145015]
[1754805820510,4.17479527,4220.9,4220.8,0.22145015]
[1754805822853,12.4254032,4220.9,4220.8,0.22145015]
[1754805823147,12.6621032,4220.9,4220.8,0.22145015]
[1754805823355,12.7004032,4220.9,4220.8,0.22145015]
[1754805825052,4.17479527,4220.9,4220.8,0.22145015]
[1754805825666,1.863,4220.9,4220.8,0.22145015]
[1754805825823,3.75833037,4220.9,4220.8,0.22145015]
[1754805828646,0.042,4220.9,4220.8,0.22145015]
[1754805828965,3.75833037,4220.9,4220.8,0.22145015]
[1754805832979,3.75833037,4220.9,4220.8,0.66185015]
[1754805833476,3.75833037,4220.9,4220.8,0.22145015]
[1754805833649,4.33572794,4220.9,4220.8,0.22145015]
[1754805840289,1.89544684,4220.7,4220.4,0.4514]
[1754805840581,0.1184,4220.6,4220.5,1.11372133]
[1754805840786,1.93733208,4220.9,4220.5,1.11372133]
[1754805840787,0.042,4220.9,4220.5,0.22192133]
[1754805841082,0.042,4220.9,4220.8,1.89537528]
[1754805841287,1.863,4220.9,4220.8,1.6452375]
[1754805841600,1.863,4220.9,4220.8,1.23212133]
[1754805845585,0.042,4220.9,4220.8,1.23212133]
[1754805845886,0.042,4220.9,4220.8,3.12749661]
[1754805846085,1.863,4220.9,4220.8,3.12749661]
[1754805846678,0.042,4220.9,4220.8,3.12749661]
[1754805846860,0.042,4220.9,4220.8,3.62979241]
[1754805848272,0.042,4220.9,4220.8,1.23212133]
[1754805849058,0.042,4220.9,4220.8,3.12749661]
[1754805849694,0.042,4220.9,4220.8,0.22192133]
[1754805849993,0.042,4220.9,4220.8,0.66232133]
[1754805851011,0.042,4220.9,4220.8,1.11341266]
[1754805851460,0.042,4220.9,4220.8,0.22161266]
[1754805853677,0.042,4220.9,4220.8,1.11341266]
[1754805853877,1.862,4220.9,4220.8,1.11341266]
[1754805854178,1.862,4220.9,4220.8,3.00878794]
[1754805854384,0.042,4220.9,4220.8,1.11341266]
[1754805854577,1.862,4220.9,4220.8,1.11341266]
[1754805855172,0.042,4220.9,4220.8,1.11341266]
[1754805855714,0.042,4220.9,4220.8,3.51106127]
[1754805855864,0.042,4220.9,4220.8,3.62946127]
[1754805856373,0.042,4220.9,4220.8,6.62946127]
[1754805856581,0.002,4221.3,4221.2,10.1458036]
[1754805856781,0.002,4221.8,4221.5,1.89506099]
[1754805856983,0.002,4221.8,4221.5,6.20177392]
[1754805857187,0.002,4221.8,4221.5,7.11367392]
[1754805857374,0.002,4221.8,4221.5,7.23207392]
[1754805857580,0.002,4222.5,4222.1,1.89479169]
[1754805857867,0.002,4222.5,4222.1,13.36701228]
[1754805858074,1e-08,4222.2,4222.1,15.33118561]